[Event "29. Klatovy A 2023"]
[Site "Klatovy"]
[Date "2023.07.04"]
[Round "4.16"]
[White "Topencik, Bruno"]
[Black "Pirklova, Hana"]
[Result "1/2-1/2"]
[ECO "C06"]
[WhiteElo "1780"]
[BlackElo "2085"]
[PlyCount "45"]
[EventDate "2023.07.01"]
[EventType "swiss"]
[EventRounds "9"]
[EventCountry "CZE"]
[TimeControl "120+30"]

1. e4 {[%emt 0:00:45]} e6 {[%emt 0:00:09]} 2. d4 {[%emt 0:00:35]} d5 {[%emt 0:00:05]} 3. Nd2 {[%emt 0:00:18]} Nf6 {[%emt 0:00:10]} 4. e5 {[%emt 0:00:16]} Nfd7 {[%emt 0:00:04]} 5. Bd3 {[%emt 0:00:10]} c5 {[%emt 0:00:11]} 6. c3 {[%emt 0:00:09]} Nc6 {[%emt 0:00:12]} 7. Ne2 {[%emt 0:00:14]} Qb6 {[%emt 0:01:58]} 8. Nf3 {[%emt 0:01:17]} cxd4 {[%emt 0:04:14]} 9. cxd4 {[%emt 0:00:19]} f6 {[%emt 0:01:33]} 10. exf6 {[%emt 0:00:42]} Nxf6 {[%emt 0:00:05]} 11. O-O {[%emt 0:00:56]} Bd6 {[%emt 0:00:51]} 12. Bf4 {[%emt 0:01:46]} Bxf4 {[%emt 0:00:33]} 13. Nxf4 {[%emt 0:00:10]} O-O {[%emt 0:00:45]} 14. Re1 {[%emt 0:13:09]} Ne4 {[%emt 0:15:26]} 15. g3 {[%emt 0:09:20]} Qxb2 {[%emt 0:08:53]} 16. Bxe4 {[%emt 0:07:02]} dxe4 {[%emt 0:00:10]} 17. Rxe4 {[%emt 0:01:10]} e5 {[%emt 0:18:53]} 18. Nxe5 {[%emt 0:06:53]} Bf5 {[%emt 0:01:16]} 19. Re2 {[%emt 0:06:01]} Qb6 {[%emt 0:18:40]} 20. Nxc6 {[%emt 0:08:44]} bxc6 {[%emt 0:00:08]} 21. Qb3+ {[%emt 0:07:05]} Kh8 {[%emt 0:02:51]} 22. Qxb6 {[%emt 0:03:35]} axb6 {[%emt 0:00:06]} 23. Rc1 {[%emt 0:01:46]} 1/2-1/2

[Event "29. Klatovy A 2023"]
[Site "Klatovy"]
[Date "2023.07.04"]
[Round "4.17"]
[White "Novotny, David"]
[Black "Kishore, Kumar Jaganathan"]
[Result "0-1"]
[ECO "D00"]
[WhiteElo "2034"]
[BlackElo "1860"]
[PlyCount "66"]
[EventDate "2023.07.01"]
[EventType "swiss"]
[EventRounds "9"]
[EventCountry "CZE"]
[TimeControl "120+30"]

1. d4 {[%emt 0:00:07]} Nf6 {[%emt 0:06:44]} 2. Nc3 {[%emt 0:00:11]} d5 {[%emt 0:00:22]} 3. Bf4 {[%emt 0:00:08]} g6 {[%emt 0:00:17]} 4. e3 {[%emt 0:00:08]} Bg7 {[%emt 0:00:12]} 5. h4 {[%emt 0:00:25]} h5 {[%emt 0:00:27]} 6. Nf3 {[%emt 0:00:25]} O-O {[%emt 0:00:16]} 7. Ne5 {[%emt 0:03:39]} c5 {[%emt 0:01:12]} 8. Qd2 {[%emt 0:07:43]} cxd4 {[%emt 0:05:05]} 9. exd4 {[%emt 0:00:11]} Nc6 {[%emt 0:00:05]} 10. O-O-O {[%emt 0:02:42]} Bf5 {[%emt 0:01:51]} 11. f3 {[%emt 0:19:56]} Rc8 {[%emt 0:05:48]} 12. Kb1 {[%emt 0:11:56]} Qa5 {[%emt 0:12:16]} 13. Rg1 {[%emt 0:14:02]} Nb4 {[%emt 0:08:13]} 14. Bd3 {[%emt 0:06:00]} Rxc3 {[%emt 0:30:07]} 15. Qxc3 {[%emt 0:02:14]} Qxa2+ {[%emt 0:02:08]} 16. Kc1 {[%emt 0:00:02]} Qa4 {[%emt 0:16:37]} 17. Qa3 {[%emt 0:14:46]} Na2+ {[%emt 0:02:39]} 18. Kd2 {[%emt 0:01:30]} Qxd4 {[%emt 0:00:19]} 19. Be3 {[%emt 0:12:39]} Qxe5 {[%emt 0:01:43]} 20. Bxf5 {[%emt 0:02:33]} Qxf5 {[%emt 0:06:26]} 21. Qxa2 {[%emt 0:04:33]} d4 {[%emt 0:00:52]} 22. Bxd4 {[%emt 0:07:48]} Bh6+ {[%emt 0:06:10]} 23. Ke1 {[%emt 0:02:50]} e5 {[%emt 0:04:59]} 24. Bc3 {[%emt 0:03:44]} e4 {[%emt 0:01:07]} 25. Rd6 {[%emt 0:06:43]} exf3 {[%emt 0:01:34]} 26. Rxf6 {[%emt 0:00:07]} Re8+ {[%emt 0:03:46]} 27. Kf2 {[%emt 0:01:42]} Be3+ {[%emt 0:00:39]} 28. Ke1 {[%emt 0:03:44]} f2+ {[%emt 0:00:21]} 29. Ke2 {[%emt 0:00:18]} fxg1=N+ {[%emt 0:01:15]} 30. Kd1 {[%emt 0:00:18]} Qd7+ {[%emt 0:00:14]} 31. Ke1 {[%emt 0:00:56]} Bc5+ {[%emt 0:00:14]} 32. Kf1 {[%emt 0:01:56]} Qb5+ {[%emt 0:00:12]} 33. Qc4 {[%emt 0:00:31]} Qxc4# {[%emt 0:00:06]} 0-1

[Event "29. Klatovy A 2023"]
[Site "Klatovy"]
[Date "2023.07.04"]
[Round "4.18"]
[White "Honcharov, Makar"]
[Black "Martirosyan, David"]
[Result "1/2-1/2"]
[ECO "C42"]
[WhiteElo "1696"]
[BlackElo "1908"]
[PlyCount "62"]
[EventDate "2023.07.01"]
[EventType "swiss"]
[EventRounds "9"]
[EventCountry "CZE"]
[TimeControl "120+30"]

1. e4 {[%emt 0:00:05]} e5 {[%emt 0:00:27]} 2. Nf3 {[%emt 0:00:14]} Nf6 {[%emt 0:00:10]} 3. d4 {[%emt 0:03:13]} Nxe4 {[%emt 0:00:12]} 4. Nxe5 {[%emt 0:00:08]} d6 {[%emt 0:00:22]} 5. Nf3 {[%emt 0:00:00]} d5 {[%emt 0:00:10]} 6. Bd3 {[%emt 0:00:20]} Nc6 {[%emt 0:00:10]} 7. O-O {[%emt 0:01:42]} Be7 {[%emt 0:00:06]} 8. c4 {[%emt 0:02:26]} Nb4 {[%emt 0:00:07]} 9. Be2 {[%emt 0:00:00]} O-O {[%emt 0:00:00]} 10. Nc3 {[%emt 0:00:00]} Bf5 {[%emt 0:00:00]} 11. Bf4 {[%emt 0:00:00]} a6 {[%emt 0:00:00]} 12. Nxd5 {[%emt 0:00:00]} Nxd5 {[%emt 0:00:00]} 13. cxd5 {[%emt 0:00:00]} Nf6 {[%emt 0:00:00]} 14. Bc4 {[%emt 0:00:00]} Be4 {[%emt 0:00:00]} 15. Rc1 {[%emt 0:00:00]} Bd6 {[%emt 0:00:00]} 16. Be5 {[%emt 0:00:00]} Nxd5 {[%emt 0:00:00]} 17. Re1 {[%emt 0:00:00]} Bxf3 {[%emt 0:00:00]} 18. Qxf3 {[%emt 1:14:09]} Ne7 {[%emt 0:01:31]} 19. Bxd6 {[%emt 0:07:40]} Qxd6 {[%emt 0:01:05]} 20. Qxb7 {[%emt 0:02:03]} Nf5 {[%emt 0:02:43]} 21. d5 {[%emt 0:04:12]} Nd4 {[%emt 0:00:29]} 22. Bd3 {[%emt 0:06:31]} Rab8 {[%emt 0:11:54]} 23. Qxc7 {[%emt 0:05:57]} Qxd5 {[%emt 0:00:09]} 24. Bc4 {[%emt 0:13:19]} Qf5 {[%emt 0:00:14]} 25. b3 {[%emt 0:03:19]} a5 {[%emt 0:03:20]} 26. Qe5 {[%emt 0:02:24]} Qxe5 {[%emt 0:05:29]} 27. Rxe5 {[%emt 0:00:52]} a4 {[%emt 0:02:01]} 28. Re4 {[%emt 0:02:01]} Rfd8 {[%emt 0:02:22]} 29. Rce1 {[%emt 0:01:50]} Nc2 {[%emt 0:02:56]} 30. Rc1 {[%emt 0:02:53]} Nd4 {[%emt 0:00:14]} 31. Rce1 {[%emt 0:00:00]} Nc2 {[%emt 0:00:00]} 1/2-1/2

[Event "29. Klatovy A 2023"]
[Site "Klatovy"]
[Date "2023.07.05"]
[Round "5.1"]
[White "Neuman, Petr"]
[Black "Vorisek, Jaroslav"]
[Result "1-0"]
[ECO "A81"]
[WhiteElo "2398"]
[BlackElo "2260"]
[PlyCount "51"]
[EventDate "2023.07.01"]
[EventType "swiss"]
[EventRounds "9"]
[EventCountry "CZE"]
[TimeControl "120+30"]

1. d4 {[%emt 0:00:04]} f5 {[%emt 0:00:08]} 2. g3 {[%emt 0:00:05]} Nf6 {[%emt 0:00:09]} 3. Bg2 {[%emt 0:00:05]} g6 {[%emt 0:00:18]} 4. c3 {[%emt 0:00:05]} Bg7 {[%emt 0:00:18]} 5. Qb3 {[%emt 0:00:08]} c6 {[%emt 0:00:54]} 6. Nd2 {[%emt 0:09:52]} d5 {[%emt 0:10:03]} 7. Nh3 {[%emt 0:02:39]} O-O {[%emt 0:10:03]} 8. Nf4 {[%emt 0:00:28]} e5 {[%emt 0:08:47]} 9. dxe5 {[%emt 0:00:35]} Ng4 {[%emt 0:00:07]} 10. c4 {[%emt 0:05:07]} d4 {[%emt 0:01:05]} 11. c5+ {[%emt 0:17:48]} Kh8 {[%emt 0:00:18]} 12. h4 {[%emt 0:00:05]} Bxe5 {[%emt 0:13:51]} 13. Nc4 {[%emt 0:05:49]} Bc7 {[%emt 0:36:42]} 14. Nd3 {[%emt 0:18:03]} Be6 {[%emt 0:06:19]} 15. Bg5 {[%emt 0:02:08]} Qe8 {[%emt 0:06:38]} 16. Qa4 {[%emt 0:12:30]} Bd5 {[%emt 0:09:58]} 17. Bxd5 {[%emt 0:00:25]} cxd5 {[%emt 0:00:01]} 18. Qxe8 {[%emt 0:00:08]} Rxe8 {[%emt 0:00:04]} 19. Nd6 {[%emt 0:00:13]} Bxd6 {[%emt 0:06:42]} 20. cxd6 {[%emt 0:00:27]} h6 {[%emt 0:00:21]} 21. Bf4 {[%emt 0:01:43]} Nc6 {[%emt 0:00:08]} 22. Rc1 {[%emt 0:02:02]} Rad8 {[%emt 0:02:18]} 23. Nc5 {[%emt 0:02:51]} Nce5 {[%emt 0:00:37]} 24. Nxb7 {[%emt 0:02:05]} d3 {[%emt 0:04:48]} 25. Bxe5+ {[%emt 0:05:51]} Rxe5 {[%emt 0:04:47]} 26. O-O {[%emt 0:03:08]} 1-0

[Event "29. Klatovy A 2023"]
[Site "Klatovy"]
[Date "2023.07.05"]
[Round "5.2"]
[White "Slovak, Kilian"]
[Black "Horak, Martin"]
[Result "1/2-1/2"]
[ECO "B77"]
[WhiteElo "2297"]
[BlackElo "2266"]
[PlyCount "29"]
[EventDate "2023.07.01"]
[EventType "swiss"]
[EventRounds "9"]
[EventCountry "CZE"]
[TimeControl "120+30"]

1. e4 {[%emt 0:00:07]} c5 {[%emt 0:00:51]} 2. Nf3 {[%emt 0:00:09]} d6 {[%emt 0:00:14]} 3. d4 {[%emt 0:00:08]} cxd4 {[%emt 0:00:05]} 4. Nxd4 {[%emt 0:00:07]} Nf6 {[%emt 0:00:04]} 5. Nc3 {[%emt 0:00:09]} g6 {[%emt 0:00:06]} 6. Be3 {[%emt 0:00:14]} Bg7 {[%emt 0:00:05]} 7. f3 {[%emt 0:00:10]} O-O {[%emt 0:00:05]} 8. Qd2 {[%emt 0:00:13]} Nc6 {[%emt 0:00:05]} 9. Bc4 {[%emt 0:00:10]} Nxd4 {[%emt 0:00:07]} 10. Bxd4 {[%emt 0:00:08]} Be6 {[%emt 0:00:04]} 11. Bb3 {[%emt 0:00:22]} Qa5 {[%emt 0:00:05]} 12. O-O-O {[%emt 0:05:47]} b5 {[%emt 0:01:12]} 13. Kb1 {[%emt 0:02:29]} b4 {[%emt 0:01:20]} 14. Nd5 {[%emt 0:02:19]} Bxd5 {[%emt 0:00:18]} 15. exd5 {[%emt 0:00:44]} 1/2-1/2

[Event "29. Klatovy A 2023"]
[Site "Klatovy"]
[Date "2023.07.05"]
[Round "5.3"]
[White "Jun, Rudolf"]
[Black "Straka, Vojtech"]
[Result "0-1"]
[ECO "B40"]
[WhiteElo "2223"]
[BlackElo "2433"]
[PlyCount "84"]
[EventDate "2023.07.01"]
[EventType "swiss"]
[EventRounds "9"]
[EventCountry "CZE"]
[TimeControl "120+30"]

1. e4 {[%emt 0:00:01]} c5 {[%emt 0:00:31]} 2. Nf3 {[%emt 0:00:11]} e6 {[%emt 0:00:23]} 3. g3 {[%emt 0:04:26]} Nf6 {[%emt 0:04:54]} 4. d3 {[%emt 0:03:15]} d5 {[%emt 0:01:19]} 5. exd5 {[%emt 0:00:20]} Nxd5 {[%emt 0:02:31]} 6. Bg2 {[%emt 0:00:28]} Be7 {[%emt 0:03:01]} 7. O-O {[%emt 0:00:06]} Nc6 {[%emt 0:00:48]} 8. d4 {[%emt 0:07:35]} cxd4 {[%emt 0:04:37]} 9. Nxd4 {[%emt 0:00:19]} Nxd4 {[%emt 0:00:37]} 10. Qxd4 {[%emt 0:00:09]} O-O {[%emt 0:00:46]} 11. c4 {[%emt 0:17:30]} Nb4 {[%emt 0:09:09]} 12. Qc3 {[%emt 0:03:26]} Nc6 {[%emt 0:13:09]} 13. Be3 {[%emt 0:03:30]} e5 {[%emt 0:08:55]} 14. Na3 {[%emt 0:05:28]} Bb4 {[%emt 0:13:30]} 15. Qb3 {[%emt 0:05:31]} Qe7 {[%emt 0:02:25]} 16. Nb5 {[%emt 0:12:17]} Be6 {[%emt 0:09:13]} 17. a3 {[%emt 0:05:22]} Bc5 {[%emt 0:04:55]} 18. Bd5 {[%emt 0:05:18]} Rad8 {[%emt 0:19:46]} 19. Rad1 {[%emt 0:19:40]} Bg4 {[%emt 0:01:16]} 20. Rd2 {[%emt 0:02:07]} a6 {[%emt 0:01:51]} 21. Nc3 {[%emt 0:02:56]} Bxe3 {[%emt 0:03:59]} 22. fxe3 {[%emt 0:00:06]} Kh8 {[%emt 0:00:13]} 23. Qb6 {[%emt 0:05:11]} f5 {[%emt 0:01:24]} 24. Rff2 {[%emt 0:03:33]} Rc8 {[%emt 0:04:25]} 25. Bxc6 {[%emt 0:07:41]} Rxc6 {[%emt 0:00:08]} 26. Nd5 {[%emt 0:00:31]} Qf7 {[%emt 0:01:10]} 27. Qb4 {[%emt 0:01:41]} Re8 {[%emt 0:01:21]} 28. c5 {[%emt 0:03:04]} Qh5 {[%emt 0:01:38]} 29. Qxb7 {[%emt 0:03:28]} Rxc5 {[%emt 0:02:03]} 30. Nc7 {[%emt 0:03:35]} Qf7 {[%emt 0:03:56]} 31. Rc2 {[%emt 0:00:48]} Rxc2 {[%emt 0:00:17]} 32. Rxc2 {[%emt 0:00:01]} Rd8 {[%emt 0:00:11]} 33. Qc6 {[%emt 0:03:34]} f4 {[%emt 0:02:14]} 34. gxf4 {[%emt 0:02:26]} exf4 {[%emt 0:00:15]} 35. e4 {[%emt 0:01:16]} Qh5 {[%emt 0:03:36]} 36. Rd2 {[%emt 0:01:01]} Rg8 {[%emt 0:02:36]} 37. Qd5 {[%emt 0:00:33]} Qh4 {[%emt 0:00:23]} 38. Rf2 {[%emt 0:00:29]} Bh3 {[%emt 0:00:54]} 39. Qd2 {[%emt 0:00:30]} Qg4+ {[%emt 0:02:29]} 40. Kh1 {[%emt 0:00:01]} f3 {[%emt 0:00:13]} 41. Qe3 {[%emt 0:01:00]} Rf8 {[%emt 0:00:17]} 42. Nd5 {[%emt 0:00:25]} Qg2+ {[%emt 0:00:06]} 0-1

[Event "29. Klatovy A 2023"]
[Site "Klatovy"]
[Date "2023.07.05"]
[Round "5.4"]
[White "Soural, Jan"]
[Black "Hurdzan, Tomas"]
[Result "1/2-1/2"]
[ECO "D92"]
[WhiteElo "2176"]
[BlackElo "2309"]
[PlyCount "62"]
[EventDate "2023.07.01"]
[EventType "swiss"]
[EventRounds "9"]
[EventCountry "CZE"]
[TimeControl "120+30"]

1. c4 {[%emt 0:00:01]} Nf6 {[%emt 0:00:29]} 2. Nf3 {[%emt 0:00:18]} g6 {[%emt 0:00:24]} 3. Nc3 {[%emt 0:00:55]} Bg7 {[%emt 0:00:06]} 4. d4 {[%emt 0:00:46]} d5 {[%emt 0:01:03]} 5. Bf4 {[%emt 0:04:05]} O-O {[%emt 0:00:38]} 6. Rc1 {[%emt 0:06:28]} Be6 {[%emt 0:03:36]} 7. c5 {[%emt 0:16:37]} Nh5 {[%emt 0:07:02]} 8. Bg3 {[%emt 0:13:14]} c6 {[%emt 0:09:49]} 9. e3 {[%emt 0:01:46]} Nxg3 {[%emt 0:01:27]} 10. hxg3 {[%emt 0:00:14]} Bg4 {[%emt 0:19:36]} 11. Qb3 {[%emt 0:00:11]} b6 {[%emt 0:01:40]} 12. cxb6 {[%emt 0:07:23]} axb6 {[%emt 0:01:50]} 13. Be2 {[%emt 0:03:35]} Nd7 {[%emt 0:08:16]} 14. O-O {[%emt 0:03:05]} Qb8 {[%emt 0:08:29]} 15. Ne1 {[%emt 0:21:59]} Bxe2 {[%emt 0:01:35]} 16. Nxe2 {[%emt 0:00:06]} Qd6 {[%emt 0:04:26]} 17. Nc2 {[%emt 0:10:09]} Rfc8 {[%emt 0:02:28]} 18. Rfd1 {[%emt 0:01:04]} h5 {[%emt 0:03:40]} 19. a3 {[%emt 0:00:29]} b5 {[%emt 0:11:35]} 20. Nf4 {[%emt 0:06:26]} e5 {[%emt 0:06:05]} 21. dxe5 {[%emt 0:08:36]} Bxe5 {[%emt 0:00:24]} 22. Nd4 {[%emt 0:09:09]} Nb6 {[%emt 0:05:28]} 23. Nd3 {[%emt 0:01:55]} Bf6 {[%emt 0:00:39]} 24. Qb4 {[%emt 0:01:52]} Qd7 {[%emt 0:01:47]} 25. Nc5 {[%emt 0:01:17]} Qe8 {[%emt 0:03:32]} 26. b3 {[%emt 0:03:55]} Be7 {[%emt 0:00:32]} 27. a4 {[%emt 0:00:21]} Nd7 {[%emt 0:12:31]} 28. Nxd7 {[%emt 0:00:08]} Qxd7 {[%emt 0:00:03]} 29. Qc3 {[%emt 0:03:07]} bxa4 {[%emt 0:00:04]} 30. bxa4 {[%emt 0:00:05]} c5 {[%emt 0:01:06]} 31. Ne2 {[%emt 0:03:37]} Qxa4 {[%emt 0:06:01]} 1/2-1/2

[Event "29. Klatovy A 2023"]
[Site "Klatovy"]
[Date "2023.07.05"]
[Round "5.5"]
[White "Skypala, Ondrej"]
[Black "Jurek, Josef"]
[Result "0-1"]
[ECO "A13"]
[WhiteElo "2163"]
[BlackElo "2251"]
[PlyCount "64"]
[EventDate "2023.07.01"]
[EventType "swiss"]
[EventRounds "9"]
[EventCountry "CZE"]
[TimeControl "120+30"]

1. c4 {[%emt 0:00:46]} e6 {[%emt 0:00:17]} 2. g3 {[%emt 0:00:10]} d5 {[%emt 0:00:25]} 3. Bg2 {[%emt 0:00:21]} c6 {[%emt 0:00:33]} 4. Nf3 {[%emt 0:00:12]} b5 {[%emt 0:00:54]} 5. b3 {[%emt 0:10:02]} Ba6 {[%emt 0:01:14]} 6. cxd5 {[%emt 0:01:01]} cxd5 {[%emt 0:00:28]} 7. O-O {[%emt 0:00:14]} Nf6 {[%emt 0:01:15]} 8. d4 {[%emt 0:03:59]} Be7 {[%emt 0:02:38]} 9. Ne5 {[%emt 0:02:32]} O-O {[%emt 0:02:08]} 10. Nd2 {[%emt 0:05:46]} Qb6 {[%emt 0:05:39]} 11. Ndf3 {[%emt 0:00:40]} Ne4 {[%emt 0:02:58]} 12. a3 {[%emt 0:07:51]} b4 {[%emt 0:05:33]} 13. Nd3 {[%emt 0:04:16]} Nc6 {[%emt 0:03:31]} 14. axb4 {[%emt 0:00:08]} Nxb4 {[%emt 0:04:32]} 15. Nfe5 {[%emt 0:08:13]} Bxd3 {[%emt 0:06:05]} 16. Nxd3 {[%emt 0:00:14]} Nc3 {[%emt 0:08:40]} 17. Qd2 {[%emt 0:03:44]} Qxd4 {[%emt 0:00:57]} 18. Nxb4 {[%emt 0:01:47]} Bxb4 {[%emt 0:02:55]} 19. Ra2 {[%emt 0:08:51]} Qxd2 {[%emt 0:07:53]} 20. Rxd2 {[%emt 0:00:40]} Rfc8 {[%emt 0:02:54]} 21. Bf3 {[%emt 0:00:50]} a5 {[%emt 0:07:45]} 22. Kg2 {[%emt 0:00:48]} Rc6 {[%emt 0:03:40]} 23. Rd3 {[%emt 0:01:17]} Rac8 {[%emt 0:02:22]} 24. Bb2 {[%emt 0:01:48]} Nb5 {[%emt 0:03:40]} 25. e4 {[%emt 0:00:18]} Rc2 {[%emt 0:02:11]} 26. Bd4 {[%emt 0:00:26]} dxe4 {[%emt 0:08:51]} 27. Bxe4 {[%emt 0:00:10]} f5 {[%emt 0:00:48]} 28. Bb7 {[%emt 0:02:31]} Rd8 {[%emt 0:03:58]} 29. Rfd1 {[%emt 0:00:22]} Nxd4 {[%emt 0:01:49]} 30. Rxd4 {[%emt 0:00:06]} Rxd4 {[%emt 0:01:46]} 31. Rxd4 {[%emt 0:00:08]} Bc5 {[%emt 0:01:05]} 32. Rf4 {[%emt 0:00:09]} g5 {[%emt 0:01:47]} 0-1

[Event "29. Klatovy A 2023"]
[Site "Klatovy"]
[Date "2023.07.05"]
[Round "5.6"]
[White "Folkova, Martina"]
[Black "Flajsman, Pavel"]
[Result "0-1"]
[ECO "C54"]
[WhiteElo "2049"]
[BlackElo "2192"]
[PlyCount "144"]
[EventDate "2023.07.01"]
[EventType "swiss"]
[EventRounds "9"]
[EventCountry "CZE"]
[TimeControl "120+30"]

1. e4 {[%emt 0:00:56]} e5 {[%emt 0:00:05]} 2. Nf3 {[%emt 0:00:05]} Nc6 {[%emt 0:00:04]} 3. Bc4 {[%emt 0:00:11]} Bc5 {[%emt 0:01:02]} 4. c3 {[%emt 0:00:11]} Nf6 {[%emt 0:00:15]} 5. d4 {[%emt 0:00:08]} exd4 {[%emt 0:00:06]} 6. cxd4 {[%emt 0:00:08]} Bb4+ {[%emt 0:00:05]} 7. Nc3 {[%emt 0:00:13]} Nxe4 {[%emt 0:01:55]} 8. O-O {[%emt 0:00:12]} Bxc3 {[%emt 0:00:13]} 9. d5 {[%emt 0:00:07]} Ne5 {[%emt 0:01:22]} 10. Qe2 {[%emt 0:02:57]} O-O {[%emt 0:07:31]} 11. bxc3 {[%emt 0:12:13]} Nxc4 {[%emt 0:00:17]} 12. Qxe4 {[%emt 0:01:32]} Nd6 {[%emt 0:00:05]} 13. Qd3 {[%emt 0:01:24]} Qf6 {[%emt 0:23:58]} 14. Re1 {[%emt 0:14:18]} b6 {[%emt 0:09:46]} 15. Ba3 {[%emt 0:03:21]} Bb7 {[%emt 0:01:45]} 16. Ne5 {[%emt 0:02:45]} Rfe8 {[%emt 0:20:51]} 17. Ng4 {[%emt 0:29:53]} Qf4 {[%emt 0:16:08]} 18. Ne3 {[%emt 0:03:09]} Qe4 {[%emt 0:18:45]} 19. Qd2 {[%emt 0:01:38]} Nc4 {[%emt 0:07:45]} 20. Nxc4 {[%emt 0:00:52]} Qxc4 {[%emt 0:00:03]} 21. Rxe8+ {[%emt 0:01:25]} Rxe8 {[%emt 0:00:00]} 22. Re1 {[%emt 0:00:24]} Rxe1+ {[%emt 0:04:01]} 23. Qxe1 {[%emt 0:00:06]} h6 {[%emt 0:00:04]} 24. f3 {[%emt 0:14:22]} Qxd5 {[%emt 0:01:59]} 25. Qe8+ {[%emt 0:06:42]} Kh7 {[%emt 0:00:01]} 26. h3 {[%emt 0:00:35]} Qxa2 {[%emt 0:02:48]} 27. Bf8 {[%emt 0:01:40]} Qa1+ {[%emt 0:06:03]} 28. Kh2 {[%emt 0:02:08]} Qxc3 {[%emt 0:00:02]} 29. Qxd7 {[%emt 0:01:11]} Qe5+ {[%emt 0:00:47]} 30. Kg1 {[%emt 0:00:23]} Qe1+ {[%emt 0:00:04]} 31. Kh2 {[%emt 0:00:27]} Qe5+ {[%emt 0:00:02]} 32. Kg1 {[%emt 0:00:28]} Bd5 {[%emt 0:01:42]} 33. Be7 {[%emt 0:05:07]} Be6 {[%emt 0:01:49]} 34. Qd8 {[%emt 0:01:13]} Qe1+ {[%emt 0:00:10]} 35. Kh2 {[%emt 0:00:05]} Qe5+ {[%emt 0:00:03]} 36. Kh1 {[%emt 0:00:43]} a5 {[%emt 0:00:48]} 37. Bh4 {[%emt 0:01:09]} a4 {[%emt 0:03:06]} 38. Bf2 {[%emt 0:00:57]} b5 {[%emt 0:01:56]} 39. Qd3+ {[%emt 0:05:08]} Bf5 {[%emt 0:00:30]} 40. Qa3 {[%emt 0:00:16]} Qd5 {[%emt 0:00:39]} 41. Qc3 {[%emt 0:02:53]} c6 {[%emt 0:00:58]} 42. Bc5 {[%emt 0:02:30]} Qb3 {[%emt 0:01:10]} 43. Qe5 {[%emt 0:00:33]} Qe6 {[%emt 0:00:05]} 44. Qc3 {[%emt 0:00:48]} Qe8 {[%emt 0:00:50]} 45. Ba3 {[%emt 0:02:36]} Be6 {[%emt 0:00:25]} 46. Qd3+ {[%emt 0:01:05]} Kg8 {[%emt 0:00:04]} 47. Qc3 {[%emt 0:00:44]} Bd5 {[%emt 0:00:11]} 48. Qc5 {[%emt 0:03:13]} Qe1+ {[%emt 0:00:08]} 49. Kh2 {[%emt 0:00:04]} Qe5+ {[%emt 0:00:08]} 50. Kh1 {[%emt 0:00:30]} Qf5 {[%emt 0:00:22]} 51. Qf8+ {[%emt 0:00:54]} Kh7 {[%emt 0:00:00]} 52. Bd6 {[%emt 0:01:54]} Bc4 {[%emt 0:02:11]} 53. Kg1 {[%emt 0:02:03]} Qb1+ {[%emt 0:00:07]} 54. Kh2 {[%emt 0:00:09]} Qg6 {[%emt 0:00:08]} 55. Kg1 {[%emt 0:02:17]} Be2 {[%emt 0:00:47]} 56. Kf2 {[%emt 0:01:20]} Bc4 {[%emt 0:00:36]} 57. Kg1 {[%emt 0:00:24]} Qb1+ {[%emt 0:00:18]} 58. Kh2 {[%emt 0:00:11]} Be6 {[%emt 0:01:36]} 59. Be5 {[%emt 0:00:36]} f6 {[%emt 0:00:10]} 60. Bc3 {[%emt 0:03:06]} Qc2 {[%emt 0:00:34]} 61. Bb4 {[%emt 0:01:06]} Bc4 {[%emt 0:00:35]} 62. Qc5 {[%emt 0:00:28]} Bd3 {[%emt 0:00:41]} 63. Qd4 {[%emt 0:00:25]} Bf1 {[%emt 0:00:22]} 64. Qg1 {[%emt 0:00:23]} Qe2 {[%emt 0:00:15]} 65. Bd6 {[%emt 0:00:26]} Kg6 {[%emt 0:00:34]} 66. Kg3 {[%emt 0:00:41]} h5 {[%emt 0:00:19]} 67. h4 {[%emt 0:00:16]} Kh7 {[%emt 0:00:48]} 68. Bc5 {[%emt 0:00:45]} Bxg2 {[%emt 0:00:32]} 69. Qb1+ {[%emt 0:01:02]} g6 {[%emt 0:00:29]} 70. Qb4 {[%emt 0:00:59]} Qxf3+ {[%emt 0:00:06]} 71. Kh2 {[%emt 0:00:04]} Qh3+ {[%emt 0:00:07]} 72. Kg1 {[%emt 0:00:04]} Bd5 {[%emt 0:01:17]} 0-1

[Event "29. Klatovy A 2023"]
[Site "Klatovy"]
[Date "2023.07.05"]
[Round "5.7"]
[White "Janous, Marek"]
[Black "Filindash, Nikita"]
[Result "1-0"]
[ECO "D31"]
[WhiteElo "2185"]
[BlackElo "2011"]
[PlyCount "45"]
[EventDate "2023.07.01"]
[EventType "swiss"]
[EventRounds "9"]
[EventCountry "CZE"]
[TimeControl "120+30"]

1. d4 {[%emt 0:03:33]} d5 {[%emt 0:00:16]} 2. c4 {[%emt 0:00:05]} e6 {[%emt 0:00:04]} 3. Nc3 {[%emt 0:00:05]} c6 {[%emt 0:00:52]} 4. e4 {[%emt 0:00:17]} dxe4 {[%emt 0:00:03]} 5. Nxe4 {[%emt 0:00:07]} Bb4+ {[%emt 0:00:06]} 6. Bd2 {[%emt 0:00:06]} Qxd4 {[%emt 0:00:04]} 7. Bxb4 {[%emt 0:00:05]} Qxe4+ {[%emt 0:00:05]} 8. Be2 {[%emt 0:00:06]} Na6 {[%emt 0:00:17]} 9. Ba5 {[%emt 0:00:09]} b6 {[%emt 0:00:26]} 10. Qd6 {[%emt 0:00:07]} Bd7 {[%emt 0:01:14]} 11. Bc3 {[%emt 0:01:27]} f6 {[%emt 0:02:01]} 12. Rd1 {[%emt 0:00:19]} O-O-O {[%emt 0:06:20]} 13. Qa3 {[%emt 0:00:53]} Kb7 {[%emt 0:03:46]} 14. Nf3 {[%emt 0:05:07]} Nh6 {[%emt 0:06:32]} 15. c5 {[%emt 1:04:19]} Nc7 {[%emt 0:12:45]} 16. cxb6 {[%emt 0:01:13]} axb6 {[%emt 0:00:13]} 17. Nd2 {[%emt 0:02:00]} Qxg2 {[%emt 0:10:03]} 18. Bf3 {[%emt 0:00:25]} Qh3 {[%emt 0:00:18]} 19. Bxf6 {[%emt 0:18:36]} e5 {[%emt 0:11:57]} 20. Bxd8 {[%emt 0:03:54]} Rxd8 {[%emt 0:00:45]} 21. Nc4 {[%emt 0:00:17]} Nb5 {[%emt 0:04:02]} 22. Bxc6+ {[%emt 0:02:26]} Kxc6 {[%emt 0:00:47]} 23. Qxh3 {[%emt 0:00:32]} 1-0